bitfinex/quotes_ETHUSD_20260313
["timestamp","ask_amount","ask_price","bid_price","bid_amount"]
[1773407638267,0.002,2155.2,2154.7,2.77182541]
[1773407638636,4.2666463,2155.2,2154.7,2.66625125]
[1773407638939,4.2666463,2155.2,2154.7,2.76712478]
[1773407639144,0.002,2155.2,2154.8,0.09887408]
[1773407639447,0.002,2155.1,2154.8,0.09887408]
[1773407640239,4.2676463,2155.1,2154.9,1.505]
[1773407640444,4.2676463,2155.1,2154.1,0.095258]
[1773407640641,4.2676463,2155.1,2154.1,1.16157705]
[1773407640843,4.2676463,2155.1,2154.2,0.04642094]
[1773407641061,4.2656463,2154.9,2153.9,0.001]
[1773407641378,4.2656463,2154.7,2153.9,0.001]
[1773407641738,3.76619595,2154.8,2153.9,0.001]
[1773407641739,4.2656463,2154.5,2153.9,0.001]
[1773407643041,4.2656463,2154.3,2153.9,0.001]
[1773407645143,4.2656463,2154.1,2153.9,0.001]
[1773407647165,5.42627768,2154.0,2153.9,0.001]
[1773407647344,4.2656463,2153.9,2153.4,1.505]
[1773407647545,4.2656463,2153.9,2153.4,0.001]
[1773407647745,4.2651463,2153.8,2153.1,0.07992736]
[1773407647960,4.2651463,2153.6,2152.2,1.504]
[1773407648743,1.54706633,2153.4,2152.2,1.504]
[1773407649048,4.2651463,2153.0,2152.0,0.07119946]
[1773407649359,4.2651463,2152.8,2152.0,0.07119946]
[1773407649779,4.2651463,2152.8,2151.8,1.13321483]
[1773407650280,4.2651463,2152.8,2151.6,1.16189762]
[1773407650455,4.2651463,2152.7,2151.0,4.64894259]
[1773407650792,4.2651463,2152.5,2151.0,0.05395916]
[1773407651085,4.2651463,2152.5,2151.1,1.503]
[1773407651245,4.2651463,2152.3,2151.2,1.16214206]
[1773407651450,4.2651463,2152.3,2151.3,0.04648352]
[1773407652058,4.2651463,2152.3,2151.4,0.04820386]
[1773407652348,4.2651463,2152.3,2151.5,0.09468306]
[1773407652558,4.2651463,2152.3,2151.5,0.0464792]
[1773407652789,4.2651463,2152.3,2151.4,0.04820386]
[1773407652953,4.2651463,2152.3,2152.1,0.001]
[1773407653148,1.16160208,2152.2,2152.1,0.001]
[1773407653464,5.42673553,2152.3,2152.1,0.001]
[1773407653891,4.2651463,2152.3,2152.1,0.001]
[1773407654189,4.2651463,2152.5,2152.1,0.001]
[1773407654356,1.1610626,2153.2,2152.1,0.001]
[1773407654357,4.2651463,2153.1,2152.1,0.03702717]
[1773407654675,4.2651463,2153.1,2152.2,0.08249125]
[1773407655277,5.42627055,2153.1,2152.3,1.16154811]
[1773407655483,5.42626451,2153.1,2152.4,1.54845976]
[1773407655780,5.42626666,2153.1,2152.4,1.54845976]
[1773407656282,1.16108518,2153.2,2152.4,1.56893044]
[1773407657784,4.2651463,2153.6,2152.5,1.16144018]
[1773407657997,4.2651463,2153.6,2152.6,0.04645544]
[1773407658190,4.2651463,2153.6,2152.7,0.00513857]
[1773407658969,4.31156724,2153.5,2152.8,1.501]
[1773407659774,4.2651463,2153.5,2152.8,1.501]
[1773407659974,1.16073915,2153.8,2152.9,1.16122439]
[1773407660190,0.04642094,2153.7,2152.9,1.16122439]
[1773407660483,4.31156724,2153.7,2152.3,4.64609309]
[1773407660686,4.31156724,2153.7,2152.4,1.54745976]
[1773407661066,4.2651463,2153.7,2152.4,1.54745976]
[1773407661274,4.31156724,2153.6,2152.4,1.54745976]
[1773407661757,4.2651463,2153.9,2152.6,1.54706633]
[1773407661963,5.42583227,2153.9,2152.7,1.16133228]
[1773407662888,5.47226776,2153.9,2152.7,1.16133228]
[1773407663086,4.2651463,2153.8,2152.7,1.16133228]
[1773407663463,4.2651463,2153.6,2152.8,1.501]
[1773407663669,4.2651463,2153.4,2152.7,1.16133228]
[1773407663896,4.31156724,2153.3,2152.4,4.64597221]
[1773407664070,4.2651463,2153.2,2152.8,1.5]
[1773407665387,4.2651463,2153.2,2152.9,1.5]
[1773407665962,4.2651463,2153.2,2153.0,1.5]
[1773407665963,5.42621342,2153.2,2153.0,1.5]
[1773407666164,4.31156724,2153.1,2152.5,1.16144018]
[1773407666381,4.31156724,2153.1,2152.6,0.04645544]
[1773407666797,4.2651463,2153.1,2152.6,0.04645544]
[1773407667310,4.2651463,2153.1,2152.7,1.5]
[1773407667507,1.16107265,2153.2,2152.8,0.04645113]
[1773407667690,4.2671463,2153.3,2152.8,0.04645113]
[1773407667992,4.2651463,2153.2,2152.8,0.04645113]
[1773407668692,5.47263153,2153.2,2152.8,0.04645113]
[1773407668891,4.31156724,2153.2,2152.8,1.20772813]
[1773407669064,4.2651463,2153.2,2152.8,1.20772813]
[1773407669261,4.31156724,2153.1,2152.9,1.499]
[1773407669594,4.31156724,2153.1,2152.2,1.16154811]
[1773407670286,4.2671463,2153.3,2152.3,0.04646192]
[1773407670488,4.2651463,2153.2,2152.4,1.16149414]
[1773407670665,4.2651463,2153.2,2152.5,1.499]
[1773407671976,4.2651463,2153.2,2152.6,0.04645544]
[1773407672490,4.2651463,2153.2,2152.5,1.499]
[1773407672802,4.2651463,2153.1,2152.6,1.499]
[1773407673480,4.2651463,2153.1,2152.4,1.16144018]
[1773407673679,4.2651463,2153.1,2152.5,1.499]
[1773407674000,4.2651463,2153.1,2152.4,1.16144018]
[1773407674297,4.2651463,2153.1,2152.5,1.499]
[1773407674797,5.42631675,2153.0,2152.5,2.6604399]
[1773407675294,4.2651463,2152.9,2152.5,2.6604399]
[1773407675674,4.2651463,2152.9,2152.4,1.16146663]
[1773407675997,4.2651463,2152.9,2152.6,1.499]
[1773407677870,5.42636063,2153.0,2152.6,1.499]
[1773407678070,4.2651463,2153.0,2152.6,2.66037079]
[1773407678299,5.42632408,2153.0,2152.6,2.66037079]
[1773407678973,5.42632049,2153.0,2152.6,1.16135585]
[1773407679181,5.42632049,2153.0,2152.7,1.499]
[1773407679376,5.47274143,2153.0,2152.7,1.499]
[1773407679693,4.31156724,2153.0,2152.7,1.499]
[1773407680699,5.47273927,2153.0,2152.7,1.499]
[1773407681269,0.002,2152.8,2152.7,1.499]
[1773407681473,0.002,2152.8,2152.6,1.16138313]
[1773407681676,0.002,2152.8,2152.7,1.499]
[1773407682094,0.002,2152.8,2152.5,1.16141814]
[1773407682293,0.002,2152.8,2152.7,1.499]
[1773407683096,0.002,2152.8,2152.5,1.16141814]
[1773407683283,0.002,2152.8,2152.6,1.499]
[1773407683597,0.002,2152.8,2152.5,1.16141814]
[1773407683598,0.002,2152.8,2152.7,1.499]
[1773407685802,0.002,2152.8,2152.7,1.54545329]
[1773407686706,1.0,2153.1,2152.7,2.70678557]
[1773407687000,1.08012212,2153.3,2152.7,2.70678557]
[1773407687201,5.34446842,2153.3,2152.7,2.70678557]
[1773407688288,4.2651463,2153.3,2152.7,2.70678557]
[1773407692008,5.47258692,2153.3,2152.7,1.16133228]
[1773407692214,5.47258692,2153.3,2152.8,1.5]
[1773407692510,4.2651463,2153.2,2152.3,3.25888696]
[1773407692707,4.2651463,2153.0,2152.4,1.5]
[1773407693088,4.2651463,2153.0,2152.3,1.16150564]
[1773407693285,4.2651463,2153.0,2152.4,1.5]
[1773407693915,4.2651463,2153.0,2152.3,1.16150564]
[1773407694090,4.2651463,2153.0,2152.4,1.54745976]
[1773407694494,4.2651463,2152.8,2152.1,0.001]
[1773407694798,4.2651463,2152.8,2152.1,1.16265068]
[1773407695503,4.2651463,2152.8,2152.6,0.001]
[1773407695812,4.2651463,2152.8,2152.3,1.501]
[1773407696418,4.2651463,2152.8,2152.1,0.001]
[1773407696623,4.2651463,2152.6,2152.1,0.001]
[1773407697590,4.2651463,2152.8,2152.2,1.502]
[1773407697791,4.2651463,2152.8,2152.3,0.02326547]
[1773407698191,4.2651463,2152.8,2152.2,1.502]
[1773407698496,5.48441939,2153.0,2152.2,1.502]
[1773407698700,4.2651463,2152.9,2152.3,1.18480926]
[1773407698900,4.2651463,2152.9,2152.3,1.16154811]
[1773407700226,4.2651463,2152.9,2152.4,1.502]
[1773407700519,4.2651463,2152.9,2152.1,1.16265145]
[1773407700718,4.2651463,2152.7,2152.2,0.02326655]
[1773407701019,4.2651463,2152.7,2152.1,0.001]
[1773407701702,4.2651463,2152.7,2152.2,1.502]
[1773407701900,4.2651463,2153.0,2152.4,1.54791129]
[1773407702100,0.002,2153.1,2152.5,3.91130403]
[1773407702308,1e-08,2153.3,2152.8,3.88804935]
[1773407702608,1e-08,2153.3,2152.9,5.39004935]
[1773407702791,4.06912101,2153.3,2153.0,1.502]
[1773407702987,4.06912101,2153.3,2152.4,1.16144018]
[1773407702988,4.069121,2153.1,2152.4,1.16144018]
[1773407703199,4.069121,2153.1,2152.5,5.39004935]
[1773407703419,4.069121,2153.1,2152.6,0.02324928]
[1773407703916,4.069121,2153.1,2152.5,5.39004935]
[1773407703917,1e-08,2153.3,2152.8,3.88804935]
[1773407704222,1e-08,2153.3,2152.6,3.88804935]
[1773407704597,4.06912101,2153.3,2152.7,1.16133228]
[1773407704819,4.06912101,2153.3,2152.7,2.66333228]
[1773407705123,0.002,2153.6,2152.8,3.88804935]
[1773407705722,0.002,2153.6,2152.6,1.16136917]
[1773407705723,4.069121,2153.3,2152.6,1.16136917]
[1773407705896,4.10395667,2153.2,2152.8,1.502]
[1773407706221,2.67781345,2153.4,2152.8,1.502]
[1773407706222,6.74693445,2153.4,2152.8,1.502]
[1773407706721,4.069121,2153.3,2152.8,2.66323869]
[1773407707022,4.10395667,2153.2,2152.8,1.502]
[1773407707189,5.23012047,2153.4,2152.8,2.66327326]
[1773407707806,5.23007715,2153.4,2152.8,6.55132261]
[1773407708002,4.10395667,2153.3,2152.8,1.502]
[1773407709026,4.069121,2153.1,2152.8,1.502]
[1773407709225,4.10395667,2153.1,2152.8,1.502]
[1773407709420,4.069121,2153.1,2152.6,1.503]
[1773407709640,4.10395667,2153.1,2152.6,1.503]
[1773407709843,4.05752064,2153.1,2152.6,1.503]
[1773407710142,4.05952064,2153.1,2152.6,1.503]
[1773407710299,4.02468497,2153.1,2152.6,1.504]
[1773407710803,4.071121,2153.1,2152.6,1.504]
[1773407711214,4.069121,2152.9,2152.6,1.504]
[1773407711420,4.069121,2152.9,2152.7,1.503]
[1773407712129,4.069121,2152.9,2152.6,0.001]
[1773407713329,4.069121,2152.8,2152.7,1.504]
[1773407713499,4.069121,2152.8,2152.6,0.001]
[1773407714913,4.069121,2152.8,2152.4,0.001]
[1773407715100,4.069121,2152.8,2152.1,0.001]
[1773407715301,4.069121,2152.6,2152.1,0.001]
[1773407716802,4.069121,2152.6,2151.9,0.001]
[1773407717244,4.069121,2152.4,2151.9,0.001]
[1773407718299,5.2305268,2152.6,2152.0,5.39204935]
[1773407718504,5.2305268,2152.6,2152.0,1.504]
[1773407719328,4.069121,2152.5,2152.0,2.6656565]
[1773407719541,4.069121,2152.5,2151.9,0.001]
[1773407719756,4.069121,2152.5,2152.1,1.504]
[1773407720035,0.03683567,2153.1,2152.1,1.504]
[1773407720036,4.069121,2152.7,2152.1,1.504]
[1773407720212,0.03483567,2152.6,2152.1,1.504]
[1773407720408,4.10395667,2152.6,2152.1,1.504]
[1773407721334,4.00275651,2154.1,2152.8,4.15273629]
[1773407721633,0.002,2154.1,2153.4,4.15273629]
[1773407722106,0.002,2154.1,2153.2,4.15273629]
[1773407722505,0.002,2154.1,2153.4,4.15273629]
[1773407722934,0.002,2154.1,2153.5,1.504]
[1773407723717,0.002,2154.1,2153.6,1.16084695]
[1773407725133,0.002,2154.1,2153.5,6.81760529]
[1773407725834,0.002,2154.1,2153.5,5.65673629]
[1773407726017,0.002,2154.1,2153.5,1.504]
[1773407727240,4.00275651,2154.1,2152.9,5.3139428]
[1773407727446,4.00275651,2154.1,2152.8,1.16124197]
[1773407727605,4.00275651,2154.1,2152.9,4.15273629]
[1773407727815,4.00075651,2153.9,2153.0,1.16117045]
[1773407728440,4.00075651,2153.8,2152.8,1.503]
[1773407728647,4.00075651,2153.8,2152.8,6.81700416]
[1773407728945,4.00075651,2153.8,2152.8,2.66426787]
[1773407729115,4.00075651,2153.8,2152.9,0.04644897]
[1773407729314,4.00075651,2153.8,2152.8,2.66426787]
[1773407729728,4.00075651,2153.8,2152.9,0.04644897]
[1773407729948,5.16154956,2153.7,2152.9,1.16120922]
[1773407730117,5.16154956,2153.7,2152.8,6.81697259]
[1773407730317,5.16154956,2153.7,2152.9,0.04644897]
[1773407730543,4.00075651,2153.6,2152.9,0.04644897]
[1773407731200,4.00075651,2153.6,2152.8,1.503]
[1773407731461,4.00075651,2153.6,2152.3,4.69973364]
[1773407731462,4.04720764,2153.5,2152.3,0.05356567]
[1773407731617,4.00075651,2153.2,2152.0,0.001]
[1773407731943,4.00075651,2152.9,2152.0,0.001]
[1773407732815,4.00075651,2152.8,2152.0,0.001]
[1773407734012,4.00075651,2152.6,2152.0,0.001]
[1773407735955,5.16219669,2152.5,2152.0,0.001]
[1773407736163,4.00075651,2152.4,2152.0,0.001]
[1773407737069,4.00075651,2152.4,2152.2,0.001]
[1773407738073,1.16154811,2152.3,2152.2,0.001]
[1773407738270,1.16154811,2152.3,2151.9,0.001]
[1773407738446,5.16230462,2152.3,2151.9,0.001]
[1773407741854,5.20875575,2152.3,2151.9,0.001]
[1773407743061,5.20875575,2152.3,2151.7,0.001]
[1773407743062,4.00075651,2152.2,2151.7,0.001]
[1773407743377,4.00075651,2152.0,2150.8,6.67314426]
[1773407743676,4.00075651,2151.7,2150.5,5.3152371]
[1773407744176,4.00075651,2151.7,2150.5,4.15273629]
[1773407744558,4.00075651,2151.7,2150.5,5.31524903]
[1773407744954,4.00075651,2151.7,2150.5,4.15273629]
[1773407745154,4.00075651,2151.5,2150.5,4.15273629]
[1773407745566,4.00075651,2151.5,2150.6,0.04649865]
[1773407746146,1.16191163,2151.7,2150.7,4.23904385]
[1773407746350,1.20836276,2151.7,2150.8,4.23904385]
[1773407746551,3.96076458,2151.6,2150.8,4.23904385]
[1773407747277,1.16196852,2151.6,2150.9,4.28473601]
[1773407747659,1.16190309,2151.7,2150.9,4.28473601]
[1773407747977,1.20915422,2151.7,2150.9,4.28473601]
[1773407748278,1.20915422,2151.7,2150.9,4.23904385]
[1773407748877,5.1699188,2151.7,2150.9,4.23904385]
[1773407749978,5.1699188,2151.7,2150.9,5.40134238]
[1773407750183,3.96076458,2151.6,2150.8,6.90239666]
[1773407750352,1.16149414,2152.4,2151.1,4.23904385]
[1773407750554,3.96076458,2152.3,2151.3,4.23904385]
[1773407751183,3.96076458,2152.3,2151.0,4.00580823]
[1773407751677,4.21922706,2152.1,2151.0,4.00580823]
[1773407752058,4.21922706,2152.1,2151.0,5.16804852]
[1773407752262,4.21922706,2152.1,2151.1,0.04648784]
[1773407752573,4.21922706,2152.1,2151.0,5.16804852]
[1773407753787,5.38093709,2152.0,2151.0,4.00580823]
[1773407753977,4.21922706,2151.9,2151.0,4.00580823]
[1773407754178,4.21922706,2151.9,2151.0,0.001]
[1773407754483,4.21922706,2151.7,2151.0,0.001]
[1773407755283,4.21922706,2151.7,2150.8,0.001]
[1773407755983,5.38115306,2151.6,2150.8,0.001]
[1773407756757,4.21922706,2151.5,2150.8,0.001]
[1773407758089,1.16203402,2151.4,2150.8,0.001]
[1773407758263,5.38126108,2151.4,2150.8,0.001]
[1773407758463,4.21922706,2151.3,2150.8,0.001]
[1773407759389,4.21922706,2151.3,2150.5,0.001]
[1773407760193,4.21922706,2151.1,2150.5,0.001]
[1773407761098,1.16214206,2151.2,2150.5,0.001]
[1773407761390,5.38136912,2151.2,2150.5,0.001]
[1773407761705,5.38136912,2151.2,2150.5,4.00580823]
[1773407761706,1.16214206,2151.2,2150.5,4.00580823]
[1773407761993,4.21922706,2151.1,2150.0,4.00480823]
[1773407762181,4.21922706,2150.9,2150.0,4.00480823]
[1773407762491,4.21922706,2150.9,2149.9,0.04651379]
[1773407762671,4.21922706,2150.9,2149.8,2.52040797]
[1773407763165,4.21922706,2150.9,2149.7,4.04774992]
[1773407763366,4.21922706,2150.9,2149.8,4.05132418]
[1773407763578,4.21922706,2150.9,2150.7,0.001]
[1773407763783,4.21922706,2150.9,2149.8,4.00480823]
[1773407764288,4.21922706,2150.7,2150.5,0.001]
[1773407764491,4.21922706,2150.7,2149.8,4.00480823]
[1773407764663,4.21922706,2150.7,2150.2,0.001]
[1773407764863,4.21922706,2150.7,2149.7,4.04774992]
[1773407765691,4.21922706,2150.7,2149.7,5.21070058]
[1773407765875,1.16235819,2150.8,2149.8,4.05132418]
[1773407766072,5.38158525,2150.8,2149.8,4.05132418]
[1773407766390,4.21922706,2150.7,2149.9,4.00480823]
[1773407767268,4.21922706,2150.7,2149.7,0.04294169]
[1773407767473,4.21922706,2150.5,2149.3,4.00480823]
[1773407768259,4.21922706,2150.3,2149.3,4.00480823]
[1773407768559,4.21922706,2150.3,2149.4,4.00480823]
[1773407768964,4.21922706,2150.3,2149.4,3.90480823]
[1773407769188,1.1625744,2150.4,2149.6,4.00480823]
[1773407769782,5.38180146,2150.4,2149.6,4.00480823]
[1773407770368,4.21922706,2150.3,2149.3,4.051335]
[1773407770573,1.1625744,2150.4,2149.3,4.051335]
[1773407770778,0.002,2151.5,2150.2,4.00480823]
[1773407770980,0.002,2151.5,2150.6,4.00480823]
[1773407771497,1.1639894,2151.5,2150.6,4.00480823]
[1773407771868,0.002,2151.5,2150.6,4.00480823]
[1773407772069,1.16398987,2151.5,2150.6,4.00480823]
[1773407772394,0.002,2151.5,2150.8,4.00480823]
[1773407772602,0.002,2151.5,2150.4,4.00480823]
[1773407772802,0.002,2151.5,2150.4,5.16738263]
[1773407773000,0.002,2151.5,2150.5,4.00480823]
[1773407773684,0.002,2151.5,2150.6,4.00480823]
[1773407774375,0.002,2151.5,2150.8,4.00480823]
[1773407774708,4.64727205,2152.1,2150.7,1.16241223]
[1773407774709,0.002,2152.5,2152.4,4.00480823]
[1773407774874,0.002,2152.9,2152.5,4.00480823]
[1773407775572,5.81363138,2152.9,2152.4,1.497]
[1773407775770,1.16522527,2152.9,2152.4,1.497]
[1773407776228,5.81363138,2152.9,2152.4,1.497]
[1773407776397,1.16522527,2152.9,2152.4,1.497]
[1773407776594,1.16522527,2152.9,2152.4,5.50180823]
[1773407778409,0.004,2152.9,2152.4,5.50180823]
[1773407778712,0.004,2152.9,2152.4,1.497]
[1773407779678,4.65240611,2152.9,2152.4,1.497]
[1773407780095,0.004,2152.9,2152.4,1.497]
[1773407780910,1.16127833,2152.8,2152.4,1.497]
[1773407781713,2.19636421,2154.6,2152.1,2.52040797]
[1773407781714,4.64373423,2153.5,2152.6,3.92383687]
[1773407781913,4.64311066,2153.8,2152.3,1.502]
[1773407781914,0.002,2153.8,2153.2,3.92383687]
[1773407782092,1.16261384,2154.1,2153.2,1.502]
[1773407782289,0.002,2154.0,2153.2,1.502]
[1773407782796,0.002,2154.0,2153.2,6.58688425]
[1773407784008,0.30820249,2155.1,2153.7,3.92383687]
[1773407784215,4.6403947,2155.0,2153.7,3.92383687]
[1773407784406,0.002,2154.8,2153.7,3.92383687]
[1773407784591,3.91197508,2154.9,2153.7,3.92383687]
[1773407784797,3.91197508,2154.7,2153.3,6.6355681]
[1773407784994,3.91197508,2154.7,2153.3,5.08483533]
[1773407785191,3.91197508,2154.7,2153.3,3.92383687]
[1773407785405,3.91397508,2154.5,2153.3,3.92383687]
[1773407785800,0.002,2154.4,2153.3,5.08484064]
[1773407786111,0.002,2154.4,2153.3,5.08484514]
[1773407786495,3.91197508,2154.4,2153.3,3.92383687]
[1773407786892,5.07444483,2154.3,2153.2,1.502]
[1773407787209,3.91197508,2154.2,2153.2,1.502]
[1773407787525,3.91397508,2153.9,2153.2,1.502]
[1773407787686,3.91197508,2153.9,2153.2,1.502]
[1773407787886,0.002,2153.7,2153.2,1.502]
[1773407788089,3.91197508,2153.9,2152.6,5.08519655]
[1773407788393,3.91397508,2153.8,2152.6,5.08519655]
[1773407788720,3.01904785,2155.1,2152.6,5.08519655]
[1773407788721,1.15715416,2156.8,2154.3,0.14948499]
[1773407788893,0.37373849,2156.6,2156.1,0.65456657]
[1773407789081,7.76044347,2156.9,2156.1,0.65456657]
[1773407789286,3.91197508,2156.8,2155.7,1.48]
[1773407789485,3.91197508,2156.6,2155.6,1.475]
[1773407789699,3.91197508,2156.2,2155.0,1.47]
[1773407789914,3.91197508,2155.9,2154.8,1.471]
[1773407790114,3.91197508,2155.9,2154.3,5.08426499]
[1773407790115,3.91197508,2155.9,2154.7,1.471]
[1773407790310,3.91197508,2155.9,2154.7,5.39483687]
[1773407790707,0.37373849,2155.8,2154.7,5.39483687]
[1773407790906,1.1597161,2155.7,2154.7,5.39483687]
[1773407791100,1.1597161,2155.7,2154.7,1.471]
[1773407791295,1.1597161,2155.7,2154.4,4.64159755]
[1773407791296,1.1597161,2155.7,2154.8,1.478]
[1773407791533,3.91197508,2155.6,2154.3,3.92383687]
[1773407791702,1.1597161,2155.7,2154.2,3.92383687]
[1773407792019,3.97751108,2155.6,2154.2,3.92383687]
[1773407792226,0.37373849,2155.4,2154.2,3.92383687]
[1773407792420,3.91197508,2155.4,2154.1,1.479]
[1773407792593,1.55075256,2155.4,2153.8,4.08005301]
[1773407792790,3.91197508,2155.3,2153.9,1.484]
[1773407792994,3.91197508,2155.1,2153.9,1.484]
[1773407793299,3.91197508,2155.0,2153.8,1.64221614]
[1773407793620,4.28571357,2154.9,2153.8,1.64221614]
[1773407793922,3.91197508,2154.9,2153.8,1.64221614]
[1773407794123,0.37373849,2154.8,2153.8,0.15621614]
[1773407794338,3.91197508,2154.8,2153.8,0.15621614]
[1773407794630,0.37373849,2154.5,2153.8,0.15621614]
[1773407794800,3.91197508,2154.8,2153.8,0.15621614]
[1773407794998,1.16025432,2154.7,2153.8,0.15621614]
[1773407795198,0.37373849,2154.6,2153.8,0.15621614]
[1773407795502,1.16025432,2154.7,2153.8,0.15621614]
[1773407795707,0.37373849,2154.5,2153.8,0.15621614]
[1773407796119,0.37373849,2154.4,2153.8,0.15621614]
[1773407796422,1.16025432,2154.7,2153.8,0.15621614]
[1773407796920,5.0722294,2154.7,2153.8,0.15621614]
[1773407797325,1.16041589,2154.4,2153.8,0.15621614]
[1773407797697,0.37373849,2154.3,2153.8,0.15621614]
[1773407798100,0.37373849,2154.2,2153.8,0.15621614]
[1773407798399,1.16041589,2154.4,2153.8,0.15621614]
[1773407798828,0.37373849,2154.3,2153.8,0.15621614]
[1773407799326,1.1605775,2154.1,2153.8,0.15621614]
[1773407801007,4.64182527,2154.4,2153.8,0.15621614]
[1773407801206,4.64166357,2154.6,2153.8,0.15621614]
[1773407801636,0.37373849,2154.4,2153.8,0.15621614]
[1773407802004,4.64166357,2154.6,2153.8,0.15621614]
[1773407802205,0.37373849,2154.5,2153.8,0.15621614]
[1773407802630,0.37373849,2154.3,2153.8,0.15621614]
[1773407802835,4.64166357,2154.6,2153.8,0.15621614]
[1773407803032,3.91197508,2154.5,2153.8,0.15621614]
[1773407803234,5.07255258,2154.1,2153.2,1.509]
[1773407803906,5.07255258,2154.1,2153.1,3.97028153]
[1773407804106,0.37373849,2153.9,2152.9,1.16118218]
[1773407804307,3.91197508,2154.0,2153.0,1.51]
[1773407804607,0.37373849,2153.9,2153.0,1.51]
[1773407805025,3.91197508,2154.0,2153.0,1.51]
[1773407805309,1.16079305,2153.7,2153.0,1.51]
[1773407805507,1.16079305,2153.7,2153.5,0.001]
[1773407805702,1.16079305,2153.7,2153.0,1.51]
[1773407805907,5.40404484,2153.7,2153.0,1.51]
[1773407806137,5.40404484,2153.7,2152.7,2.67233228]
[1773407806338,5.40404484,2153.7,2152.7,5.80578144]
[1773407806339,0.37373849,2153.7,2152.7,5.80578144]
[1773407806518,1.16036203,2154.5,2153.2,4.29478144]
[1773407806717,1.16036203,2154.5,2153.4,4.29478144]
[1773407806926,0.37373849,2154.4,2153.5,1.511]
[1773407807330,0.37373849,2154.3,2153.5,1.511]
[1773407807540,1.16036203,2154.5,2153.5,1.511]
[1773407807939,0.37373849,2154.4,2153.5,1.511]
[1773407808330,0.37373849,2154.3,2153.6,1.512]
[1773407808512,1.16036203,2154.5,2153.6,1.512]
[1773407808908,4.24325179,2154.2,2152.9,4.29478144]
[1773407809126,4.24325179,2154.0,2152.9,4.29478144]
[1773407809329,1.53442375,2153.9,2152.9,5.45596182]
[1773407809711,1.16068526,2153.9,2152.9,5.45596182]
[1773407810036,1.16068526,2153.9,2152.9,5.50241079]
[1773407810442,0.37373849,2153.7,2152.9,5.50241079]
[1773407810846,0.37373849,2153.6,2152.9,5.50241079]
[1773407811140,1.16068526,2153.9,2152.9,5.50241079]
[1773407811313,0.37373849,2153.8,2152.9,5.50241079]
[1773407811949,0.37373849,2153.7,2152.9,5.50241079]
[1773407812252,4.114158,2153.8,2152.6,4.29849314]
[1773407812411,4.48789649,2153.6,2152.7,1.513]
[1773407812619,4.114158,2153.6,2152.7,1.513]
[1773407812817,4.48789649,2153.6,2152.7,1.513]
[1773407813019,4.114158,2153.6,2152.7,1.513]
[1773407813419,1.16095476,2153.4,2152.7,1.513]
[1773407814519,0.37373849,2153.3,2152.7,1.513]
[1773407814952,0.37373849,2153.2,2152.7,1.513]
[1773407815132,1.16095476,2153.4,2152.7,1.513]
[1773407815529,6.75542734,2153.9,2152.8,4.29749314]
[1773407815734,1.16073915,2153.8,2152.8,4.34394427]
[1773407815933,0.37373849,2153.7,2152.8,4.34394427]
[1773407816129,1.16073915,2153.8,2152.8,4.34394427]
[1773407816659,0.37373849,2153.7,2152.8,4.34394427]
[1773407817153,0.37373849,2153.6,2152.8,4.34394427]
[1773407817355,1.1605775,2154.1,2152.8,4.34394427]
[1773407817561,0.37373849,2154.0,2152.9,5.45871753]
[1773407817854,4.114158,2154.0,2152.9,5.45971753]
[1773407818054,0.002,2153.5,2153.0,1.513]
[1773407818553,0.37373849,2153.3,2152.9,5.81149314]
[1773407818742,0.002,2153.5,2152.9,5.81149314]
[1773407819129,0.37373849,2153.3,2152.9,5.81149314]
[1773407819331,1.1605775,2154.1,2152.9,5.81149314]
[1773407819332,0.30730262,2156.4,2155.7,4.29749314]
[1773407819541,0.11999997,2157.4,2157.3,4.25687629]
[1773407819834,0.11999997,2157.4,2156.1,8.93528184]
[1773407819835,4.114158,2157.4,2156.7,1.70920438]
[1773407820154,4.113358,2157.3,2156.3,1.515]
[1773407820524,4.113358,2157.3,2156.0,5.39151485]
[1773407820729,4.113358,2157.3,2155.7,4.29749314]
[1773407820730,0.88191978,2157.0,2156.1,1.517]
[1773407821149,4.99607778,2157.0,2155.7,1.518]
[1773407821322,4.114158,2157.0,2155.7,1.518]
[1773407821522,4.114158,2156.8,2155.5,2.47692531]
[1773407821744,4.114158,2156.8,2155.6,1.52]
[1773407822550,4.114158,2156.8,2155.6,1.522]
[1773407822957,4.114158,2156.8,2155.7,1.523]
[1773407823649,1.15917837,2156.7,2155.7,2.68271313]
[1773407823850,1.15907088,2156.9,2155.7,2.68271313]
[1773407824445,4.70181955,2157.0,2155.7,2.68271313]
[1773407824446,1.15903034,2157.0,2155.7,6.98020627]
[1773407824856,1.15903034,2157.0,2155.7,5.45720627]
[1773407825153,1.15903034,2157.0,2155.8,1.527]
[1773407825460,4.63501091,2157.5,2155.9,4.29749314]
[1773407825461,5.27290655,2157.5,2155.9,4.29749314]
[1773407825681,1.39012835,2158.1,2155.9,4.29749314]
[1773407825682,0.77251115,2161.3,2156.8,4.29749314]
[1773407825964,0.7251251,2163.8,2161.3,4.29749314]
[1773407826191,4.114158,2163.5,2161.3,4.24775455]
[1773407826461,4.114158,2163.5,2160.4,1.53]
[1773407826462,4.114158,2162.5,2160.1,6.77441845]
[1773407826677,4.114158,2162.5,2159.6,0.23317943]
[1773407826678,4.114158,2162.1,2159.7,4.29749314]
[1773407826828,4.114158,2161.7,2159.6,0.23237943]
[1773407827031,4.114158,2161.5,2159.6,0.23237943]
[1773407827231,4.114158,2162.7,2159.7,4.29749314]
[1773407827554,5.2706552,2161.7,2159.7,1.15756818]
[1773407827756,5.73586867,2161.2,2159.6,0.23237943]
[1773407828060,4.179694,2161.0,2159.6,0.23237943]
[1773407828246,4.179694,2160.7,2159.6,0.23237943]
[1773407828448,4.179694,2160.7,2159.1,1.523]
[1773407828638,1.62171067,2161.2,2159.3,4.63105042]
[1773407828840,4.179694,2161.1,2158.8,4.29749314]
[1773407829044,1.62171067,2161.6,2159.5,7.70658344]
[1773407829242,5.73586867,2161.6,2159.6,4.29749314]
[1773407829443,5.73586867,2161.6,2159.5,1.8830903]
[1773407829444,4.114158,2161.1,2159.5,0.72543178]
[1773407829662,1.62171067,2160.7,2159.5,0.72543178]
[1773407830169,1.15692535,2160.9,2159.6,1.532]
[1773407831157,1.15692535,2160.9,2159.6,1.536]
[1773407831461,1.15892535,2160.9,2159.5,2.26343178]